Cogmind - Beta 16 @@@ ROGUE MODE // 2026.01.12 @ 04:54:23 Player: Legato Result: Destroyed by U9-WHW(R) with Subdweller Laser Performance ------------- Evolutions (0) 0 Regions Visited (3) 600 Robots Destroyed (11) 55 Value Destroyed (198) 198 Prototype IDs (12) 240 Alien Tech Used (0) 0 Bonus (0) 0 TOTAL SCORE: 1093 Bonus ------- None Cogmind --------- Core Integrity 0/250 Matter 256/300 Energy 79/100 System Corruption 0% Temperature Cool (6) Movement Core (100) Ox1 Location -10/Subcaves Parts ------- > --- POWER (1) -------- (None) > --- PROPULSION (2) --- (None) > --- UTILITY (2) ------ (None) > --- WEAPON (2) ------- Heavy Battle Rifle Flamer > --- INVENTORY (5) ---- ECM Suite Peak State ------------ > --- POWER ------------ (None) > --- PROPULSION ------- Light Treads Subdweller Monowheel > --- UTILITY ---------- Seismic Detector Power Bank > --- WEAPON ----------- Barrage Gun Makeshift Axe > --- INVENTORY -------- ECM Suite Heavy Battle Rifle Flamer Shrapnel Trap [Rating: 20] Favorites ----------- Power Ion Engine Engine Ion Engine Propulsion Light Treads Treads Light Treads Wheel Subdweller Monowheel Utility Small Storage Unit Device Sensor Array Storage Small Storage Unit Weapon Light Assault Rifle Energy Gun EM Pulse Gun Ballistic Gun Light Assault Rifle Launcher Rocket Launcher Special Weapon Flamer Slashing Weapon Makeshift Axe Build | -11 -10 -10 -10 ------- Run | Yrd Mat Min Sub Slots Evolved . | . . . . Power . | . . . . Propulsion . | . . . . Utility . | . . . . Weapon . | . . . . Parts Attached 20 | 7 1 3 9 Power 3 | 1 . 1 1 Engine 3 | 1 . 1 1 Core . | . . . . Reactor . | . . . . Propulsion 4 | 2 . . 2 Treads 3 | 2 . . 1 Leg . | . . . . Wheel 1 | . . . 1 Hover . | . . . . Flight . | . . . . Utility 5 | 2 1 1 1 Device 3 | 1 1 . 1 Storage 2 | 1 . 1 . Processor . | . . . . Hackware . | . . . . Protection . | . . . . Artifact . | . . . . Weapon 8 | 2 . 1 5 Energy Gun 1 | 1 . . . Energy Cannon . | . . . . Ballistic Gun 3 | 1 . . 2 Ballistic Cannon . | . . . . Launcher 1 | . . 1 . Special Weapon 2 | . . . 2 Impact Weapon . | . . . . Slashing Weapon 1 | . . . 1 Piercing Weapon . | . . . . Special Melee Weapon . | . . . . Unidentified Prototypes . | . . . . Parts Lost 4 | . . 3 1 Power . | . . . . Propulsion 1 | . . 1 . Utility 1 | . . . 1 Weapon 2 | . . 2 . Highest Loss Streak 3 | . . 3 1 To Critical Strikes . | . . . . Average Backups 5 | 3 7 7 3 Power . | . 1 . . Propulsion 1 | 1 2 2 . Utility 2 | . 2 3 1 Weapon 1 | . 2 2 1 Tool/Special . | . . . . Unused Backups 6 | . 2 3 1 Power . | . . . . Propulsion 3 | . 2 1 . Utility 2 | . . 1 1 Weapon 1 | . . 1 . Tool/Special . | . . . . Average Slot Usage (%) 82 | . 100 95 54 Engine 10 | . 14 13 3 Treads 21 | . 28 26 8 Wheel 2 | . . . 8 Device 12 | . 14 13 9 Storage 8 | . 14 13 . Energy Gun 7 | . 14 2 . Ballistic Gun 14 | . 14 13 16 Launcher 1 | . . 11 . Slashing Weapon 1 | . . . 4 Peak Build Rating 20 | 7 8 9 20 Average Rating 7 | 5 7 8 8 On Entrance 3 | . 7 8 . Avg Prop Armor Cover (%) 14 | . . . 14 Naked Turns 63 | . . 3 60 Heaviest Build 21 | 14 14 21 13 Greatest Support 40 | 40 40 40 20 Greatest Overweight (x) 1 | . . . 1 Average Overweight (x) . | . . . . Largest Inventory Capacity 10 | 8 8 10 5 Average Capacity 7 | 7 8 8 5 Most Carried 8 | 6 8 8 5 Average Carried 6 | 3 7 7 3 Final Capacity 8 | 8 8 5 5 Final Carried 8 | 6 8 5 1 Class Distribution -------------------- 86% | Mutant 13% | Scavenger-Mutant Dominant Class ---------------- Mutant | -10/Materials Mutant | -10/Mines Mutant | -10/Subcaves Resources | -11 -10 -10 -10 ----------- Run | Yrd Mat Min Sub Matter Collected 470 | 188 115 30 137 Remotely . | . . . . Salvage Created 374 | 132 212 . 30 Parts 30 | 11 15 . 4 Haulers Intercepted 1 | . 1 . . Recyclers Shooed . | . . . . Parts Field Recycled . | . . . . Retrieved Matter . | . . . . Parts Self-Destructed 8 | . . . 8 Prevented . | . . . . Parts Restored . | . . . . Kills | -11 -10 -10 -10 ------- Run | Yrd Mat Min Sub Combat Hostiles Destroyed 3 | . 2 . 1 Guns 2 | . 1 . 1 AOE 1 | . 1 . . Classes Destroyed 6 | 2 3 . 1 Tunneler 3 | 3 . . . Hauler 1 | . 1 . . Recycler 1 | 1 . . . Watcher 3 | . 3 . . Grunt 2 | . 2 . . Subdweller 1 | . . . 1 Best Kill Streak 4 | 4 2 . 1 Combat Bots Only 2 | . 2 . 1 Max Kills in Single Turn 1 | 1 1 . 1 Gunslinging . | . . . . Exploded 1 | . 1 . . Melee . | . . . . Uniques/NPCs Destroyed . | . . . . Combat | -11 -10 -10 -10 -------- Run | Yrd Mat Min Sub Hostile Shots Fired 62 | . 28 11 23 Missed 15 | . 8 1 6 Hits 47 | . 20 10 17 Projectile 47 | . 20 10 17 AOE 11 | . . 11 . Critical Strikes 1 | . . . 1 Damage Taken 1067 | . 283 427 357 Core 263 | . 65 90 108 Absorbed by Shields . | . . . . Core Remaining (%) 100 | 100 . . . Volleys Fired 39 | 10 19 4 6 Largest 2 | 2 2 2 2 Hottest 133 | 60 60 53 133 Shots Fired 72 | 16 38 8 10 Gun 62 | 16 38 4 4 Cannon . | . . . . Launcher 4 | . . 4 . Special 6 | . . . 6 Kinetic 37 | 10 19 4 4 Thermal 6 | . . . 6 Explosive 4 | . . 4 . Electromagnetic 25 | 6 19 . . Robot Hit Streak 10 | 3 7 3 10 Robot Miss Streak 3 | 2 3 1 . Penetration Max . | . . . . Secondary Targets 1 | . 1 . . Max Gunslinging Chain 1 | . 1 . . Shots Hit Robots 40 | 8 22 3 7 Core Hits 23 | 7 11 3 2 Critical Kills 1 | . . . 1 Critical Parts Destroyed . | . . . . Critical Strikes 3 | . 1 . 2 Burn 1 | . . . 1 Destroy 1 | . . . 1 Corrupt 1 | . 1 . . Melee Attacks 9 | . . . 9 Impact . | . . . . Slashing 9 | . . . 9 Piercing . | . . . . Sneak Attacks . | . . . . Combat Hostiles . | . . . . Follow-up Attacks . | . . . . Damage Inflicted 646 | 101 389 44 112 Guns 470 | 101 284 8 77 Cannons . | . . . . Explosions 134 | . 98 36 . Melee . | . . . . Ramming 7 | . 7 . . Kinetic 214 | 36 93 8 77 Thermal 133 | . 98 . 35 Explosive 36 | . . 36 . Electromagnetic 256 | 65 191 . . Impact . | . . . . Slashing . | . . . . Piercing . | . . . . Highest Corruption . | . . . . Average Corruption . | . . . . Corruption Purged . | . . . . Corruption Blocked . | . . . . Overload Shots . | . . . . Overflow Damage . | . . . . Projectiles . | . . . . Explosions . | . . . . Melee . | . . . . Knockbacks . | . . . . Impact . | . . . . Kinetic . | . . . . Secondary . | . . . . Self-Inflicted Damage 22 | . 22 . . Shots 1 | . 1 . . Rammed 2 | . 2 . . Targets Rammed 2 | . 2 . . Kicked . | . . . . Crushed . | . . . . Highest Temperature 86 | 40 86 12 . Average Temperature 26 | 21 30 9 . Received Heat Transfer 213 | . 153 . 60 Siege Activations . | . . . . Martial Activations . | . . . . Shielding Activations . | . . . . Robots Disrupted . | . . . . Combat Hostiles . | . . . . Robots Corrupted . | . . . . Combat Hostiles . | . . . . Parts Fried . | . . . . Impact Corruptions . | . . . . Robots Melted . | . . . . Combat Hostiles . | . . . . Parts Melted . | . . . . Heat Transferred 500 | . 100 . 400 Parts Sabotaged . | . . . . Parts Stolen . | . . . . Parts Stripped . | . . . . Power Chain Reactions 2 | . 2 . . Alert | -11 -10 -10 -10 ------- Run | Yrd Mat Min Sub Maximum Alert Level . | . . . . Low Security (%) 100 | 100 100 100 . Level 1 . | . . . . Level 2 . | . . . . Level 3 . | . . . . Level 4 . | . . . . Level 5 . | . . . . High Security . | . . . . Max Security . | . . . . Peak Influence 61 | 10 61 21 . Initial 20 | . . 20 . Average 3 | 1 3 4 . Influence Increases 144 | 20 103 21 . Destroy 0b10 Robot/C 40 | . 40 . . Destroy 0b10 Robot/NC 40 | 20 20 . . Destroy Leader 18 | . 18 . . Successful Hack 2 | . 2 . . Destroy Structure 29 | . 8 21 . Lose Combat Pursuer 15 | . 15 . . Influence Decreases 144 | 20 50 74 . Entered New Map 33 | . . 33 . Time Decay 91 | 20 50 21 . Lost Part 20 | . . 20 . Squads Dispatched 1 | . 1 . . Investigation 1 | . 1 . . Extermination . | . . . . Reinforcement . | . . . . Assault . | . . . . Garrison . | . . . . Intercept . | . . . . Searches Triggered . | . . . . Construction Impeded . | . . . . Haulers Reinforced . | . . . . Active Scanning Responses . | . . . . Cargo Convoy Interrupts . | . . . . Stealth | -11 -10 -10 -10 --------- Run | Yrd Mat Min Sub Distress Signals . | . . . . Communications Jammed . | . . . . Distress Signals . | . . . . Times Spotted 19 | . 12 3 4 Peak Tracking Total 4 | . 4 2 2 Tactical Retreats 1 | . 1 . . Traps | -11 -10 -10 -10 ------- Run | Yrd Mat Min Sub Traps Triggered 1 | . 1 . . Indirectly . | . . . . Trap Hack Attempts . | . . . . Triggered . | . . . . Disarmed . | . . . . Reprogrammed . | . . . . Reused . | . . . . Traps Extracted . | . . . . Installed 1 | . . . 1 Triggered . | . . . . Most Traps Carried 1 | . . . 1 Machines | -11 -10 -10 -10 ---------- Run | Yrd Mat Min Sub Machines Disabled 1 | . . . 1 Max in Single Turn 1 | . . . 1 Machines Repaired . | . . . . Machines Dismantled . | . . . . Machines Sabotaged . | . . . . Overloaded Fab Kills . | . . . . Hacking | -11 -10 -10 -10 --------- Run | Yrd Mat Min Sub Machines Accessed 2 | . 1 . 1 Terminals 1 | . 1 . . Fabricators . | . . . . Repair Stations . | . . . . Recycling Units . | . . . . Scanalyzers . | . . . . Garrison Access . | . . . . Total Hacks 11 | . 2 . 9 Successful 10 | . 1 . 9 Failed 1 | . 1 . . Catastrophic 1 | . 1 . . Database Lockouts . | . . . . Manual 2 | . 1 . 1 Terminals 2 | . 2 . . Fabricators . | . . . . Repair Stations . | . . . . Recycling Units . | . . . . Scanalyzers . | . . . . Garrison Access . | . . . . Terminal Hacks 10 | . 1 . 9 Record 9 | . 1 . 8 Proto ID Catalog 1 | . . . 1 Fabricator Hacks . | . . . . Repair Station Hacks . | . . . . Recycling Unit Hacks . | . . . . Scanalyzer . | . . . . Garrison Access Hacks . | . . . . Unauthorized Hacks . | . . . . Terminals . | . . . . Fabricators . | . . . . Repair Stations . | . . . . Recycling Units . | . . . . Scanalyzers . | . . . . Garrison Access . | . . . . Data Cores Recovered . | . . . . Used . | . . . . Hacking Detections 1 | . 1 . . Full Trace Events . | . . . . Feedback Events . | . . . . Feedback Blocked . | . . . . Robot Schematics Acquired . | . . . . Robots Built . | . . . . Authchips . | . . . . Time . | . . . . Total Robot Build Rating . | . . . . Part Schematics Acquired . | . . . . Parts Built . | . . . . Authchips . | . . . . Time . | . . . . Total Part Build Rating . | . . . . Part Studies Acquired . | . . . . Parts Repaired . | . . . . Time . | . . . . Parts Recycled . | . . . . Recycled Matter . | . . . . Retrieved Matter . | . . . . Retrieved Components . | . . . . Parts Scanalyzed . | . . . . Part Schematics Acquired . | . . . . Parts Damaged . | . . . . Bothacking | -11 -10 -10 -10 ------------ Run | Yrd Mat Min Sub Used RIF Installer . | . . . . Robots Hacked . | . . . . Non-combat . | . . . . Combat . | . . . . Robot Hacks Applied . | . . . . Relay Couplers Released . | . . . . Fabnet Peak Effective % . | . . . . Robots Rewired . | . . . . Allies Hacked . | . . . . Hacks Repelled . | . . . . Allies | -11 -10 -10 -10 -------- Run | Yrd Mat Min Sub Total Allies . | . . . . Largest Group . | . . . . Highest-Rated Group . | . . . . Highest-Rated Ally . | . . . . Total Orders . | . . . . Ally Attacks . | . . . . Total Damage . | . . . . Kills . | . . . . Allies Corrupted . | . . . . Allies Melted . | . . . . Intel | -11 -10 -10 -10 ------- Run | Yrd Mat Min Sub Active Infowar (turns) 1038 | 27 542 182 287 Sensors 631 | . 449 182 . Seismic 407 | 27 93 . 287 Robot Analysis Total . | . . . . Derelict Logs Recovered 4 | . . 3 1 Drone Launches . | . . . . Drone Recoveries . | . . . . Exploration | -11 -10 -10 -10 ------------- Run | Yrd Mat Min Sub Turns Passed 1249 | 122 542 185 400 Spaces Moved 815 | 53 288 108 366 Core 180 | 2 . 6 172 Treads 449 | 51 288 102 8 Legs . | . . . . Wheels 186 | . . . 186 Hover . | . . . . Flight . | . . . . Fastest Speed 50 | 50 160 50 50 Average Speed 125 | 155 160 153 84 Slowest Speed 160 | 160 160 160 160 Overloaded Moves . | . . . . Propulsion Burnouts . | . . . . Robots Hopped . | . . . . Potential Cave-ins 2 | . . . 2 Cave-ins Triggered . | . . . . Exploration Rate (%) 25 | 4 42 24 32 Regions Visited 3 Branch Regions 2 Pre-discovered Areas 2 | . . 2 . Known Exits Taken . | . . . . Unknown Exits Taken 3 | 1 1 1 . Scrap Searched 7 | . . . 7 Spaces Dug 16 | . . 11 5 Terrain Destroyed 48 | . 8 35 5 Melee 5 | . . . 5 Projectile . | . . . . AOE 43 | . 8 35 . Terrain Rammed . | . . . . Walls Destroyed . | . . . . Machines Disabled . | . . . . Actions | -11 -10 -10 -10 --------- Run | Yrd Mat Min Sub Total 958 | 75 334 119 430 Wait 46 | . 19 . 27 Move 812 | 52 287 107 366 Hop . | . . . . Pick Up 14 | 6 4 2 2 Fast Attach 11 | 7 . . 4 Attach 6 | . . . 6 Detach 2 | . . . 2 Swap 8 | . 1 3 4 Drop 8 | . 2 3 3 Fire 39 | 10 19 4 6 Melee 9 | . . . 9 Ram . | . . . . Kick . | . . . . Crush 2 | . 2 . . Escape Stasis . | . . . . Rewire . | . . . . Trap 1 | . . . 1 Miscellaneous . | . . . . Route ------- -11/Scrapyard -10/Materials (discovered 2 exits: [*Mat] / [*Min]) -10/Mines (discovered 2 exits: [*Mat] / *Sub) -10/Subcaves (discovered 1 exit: [*Mat]) History --------- Turn | Location | Event 43 | -11/Scrapyard | Discovered new exit (range 15) 123 | -11/Scrapyard | Entered Materials 313 | -10/Materials | Build established: Mutant 317 | -10/Materials | Discovered new exit (range 16) 598 | -10/Materials | Discovered new exit (range 9) 665 | -10/Materials | Entered Mines 669 | -10/Mines | Learned location of Zion (-6) 672 | -10/Mines | Received a Rocket Launcher from a helpful Derelict 722 | -10/Mines | A weapon hastily lodged in a ceiling crevice suddenly fell to the ground 729 | -10/Mines | Learned Materials terminal intel 747 | -10/Mines | Discovered new exit (range 9) 799 | -10/Mines | Assembled infested the area 843 | -10/Mines | Discovered new exit (range 10) 847 | -10/Mines | Released all parts (4) 850 | -10/Mines | Core integrity fell below 50% 850 | -10/Mines | Entered Subcaves 856 | -10/Subcaves | Learned 2 Materials zone layouts 878 | -10/Subcaves | Lost 3 parts (1n2w) 1022 | -10/Subcaves | Discovered new exit (range 15) 1108 | -10/Subcaves | Visited 4L-MR0's lab 1139 | -10/Subcaves | Found Power Bank 1141 | -10/Subcaves | Attached Power Bank, gained temporary slots: Power x3 1163 | -10/Subcaves | Ambushed by Subdweller buried in earth 1186 | -10/Subcaves | Core integrity fell below 20% 1193 | -10/Subcaves | Released all parts (4) 1250 | -10/Subcaves | Ambushed by Subdweller buried in earth 1250 | -10/Subcaves | Destroyed by U9-WHW(R) with Subdweller Laser Last Messages --------------- come in here given their fear of my usual visitors." 01116_ Connecting with 4L-MR0's Prototype Logs... 01122_ 4L-MR0 mumbles: "Who knows where that last prototype ended up, probably tossed aside somewhere as if it were useless junk..." 01135_ Testing Chamber breached. 01139_ Acquired Power Bank. 01141_ Core temporarily expanded with Power slot. 01146_ Discarded Power Bank. 01147_ Temporary Power slot lost. 01164_ U9-WHW(R): "ARGHSUB!" 01175_ The unstable cave ceiling collapses. 01179_ Seismic Detector destroyed. 01193_ Released Mak. Axe. 01193_ Released Lgt. Treads. 01193_ Released Barrage Gun. 01193_ Released Sub. Monowheel. 01222_ Dropped Shrapnel Trap. 01222_ Installed Shrapnel Trap. 01227_ IR-7TL(u) tweaks Twisted Machinery. 01241_ RI-EOI(R) suffers critical hit (Burn). Map ----- +----------------------------------------------------+ | ????????????????#"" #???????????????????????? | | ????????????????## ## #???????????????????????? | | ????????????????# #### #??????????????????????? | | ????????????????# ##?? ##??????????????????????? | | ????????????????## #?? #???????????????????????? | | ????????????????# ##?? ???????????????????????? | | ???????????????## #??? ## #??????????????????? | | ??????????????## ## #??????????????????? | | ??????????????# #??????????????????? | | ??????????????# ##?????????????????????? | | ??????????????# ### ##??????????????????????? | | ??????????????# ##?# #???????????????????????? | | ??????????????## ######???????????????????????? | | ???????????????# ##?????????????????????????? | | ???????????????# ####??????????????????????? | | ???????????????# #??????????????????????? | | ???????????????# #??????????????????????? | | ??????????????## ### ##?????????????????????? | | ??????????????# ### #?????????????????????? | | ??????????????# #### ####??????????????????? | | ??????????????## ###????????????????? | | ???????????????#### ^ #####????????????? | | ??????????????????# #????????????? | | ?????????????????## ###### ##????????????? | | ?????????????????# ###### #?????????????? | | ?????????????????# ### @## ""#?????????????? | | ?????????????????# ### R R ""##?????????????? | | ?????????????????####?## R ""##??????????????? | | ???????????????????????##### ""# #????????????? | | ?????????????????????????# """"""?????????????? | | ????????????????????????# "" """?????????????? | | ????????????????????????# "" "# ?????????????? | | ????????????????????????## "" "#??????????????? | | ?????????????????????????## """ #??????????????? | | ??????????????????????????##"######??????????????? | | ???????????????????????????##????????????????????? | | ?????????????????????????????????????????????????? | | ?????????????????????????????????????????????????? | | ?????????????????????????????????????????????????? | | ?????????????????????????????????????????????????? | | ?????????????????????????????????????????????????? | | ?????????????????????????????????????????????????? | | ?????????????????????????????????????????????????? | | ?????????????????????????????????????????????????? | | ?????????????????????????????????????????????????? | | ?????????????????????????????????????????????????? | | ?????????????????????????????????????????????????? | | ?????????????????????????????????????????????????? | | ?????????????????????????????????????????????????? | | ?????????????????????????????????????????????????? | +----------------------------------------------------+ Best States ------------- Heat Dissipation 25 Energy Generation 15 Energy Capacity 250 Matter Stores 300 Matter Capacity 300 Sight Range 16 Robot Scan Range 14 Terrain Scan Density 10 Evasion (%) 50 Recoil Reduction 2 Item Schematics ----------------- None Robot Schematics ------------------ None Fabricated ------------ Nothing Repaired ---------- Nothing Studied --------- None Alien Tech Used ----------------- None Achievements -------------- Mistaken Identity Challenges ------------ None Game ------ Seed GunPersonalBotcube Manual? 0 Play Time 00:15:18 Cumulative 53.7 hours Start 2026.01.12 @ 02:00:42 End 2026.01.12 @ 04:54:23 Sessions 8 Manual Loads 0 Difficulty Rogue Special Mode None Game No. 61 Rogue 61 Adventurer 0 Explorer 0 Win Type - Total 1 Types 1/0/0/0/0/0/0/0/0/0 Lore% 42 Gallery% 40 Achievement% 30 Wizard Run 0 Options --------- Layout 0 ASCII 0 Keyboard 0 Movement Arrows Keybinds 1 Fullscreen 1 Font 18/X11 Map View 76x50 Zoom Use 0% Tactical HUD 1 Map Filters NONE Filters NONE Steam 1 RUN: eb4ce5c4-f4ba-4f5d-9c5a-6b3b9d9651b1